[Event "FIDE WTC Prel-A 2022"]
[Site "Jerusalem"]
[Date "2022.11.21"]
[Round "3.1"]
[White "Vachier-Lagrave, Maxime"]
[Black "Santos Latasa, Jaime"]
[Result "1-0"]
[ECO "D38"]
[WhiteElo "2736"]
[BlackElo "2665"]
[Annotator "TA"]
[PlyCount "107"]
[EventDate "2022.11.20"]
[EventType "team-tourn"]
[EventCountry "ISR"]
[SourceTitle "playchess.com"]
[Source "ChessBase"]
[SourceQuality "1"]
[WhiteTeam "France"]
[BlackTeam "Spain"]
[WhiteTeamCountry "FRA"]
[BlackTeamCountry "ESP"]
[TimeControl "2700+10"]

{[%evp 11,107,22,14,6,15,19,7,6,24,23,18,17,14,7,15,20,14,7,21,12,12,11,21,0,6,10,37,35,22,23,29,23,33,40,34,32,41,12,39,14,15,18,16,19,42,43,44,43,42,44,47,47,43,41,63,28,74,74,77,69,57,39,45,33,35,31,37,22,31,27,31,25,24,18,105,100,186,151,172,160,207,213,203,157,157,157,160,157,285,269,469,462,547,245,437,437,29980,29981]} 1. d4 {[%emt 0:00:02]} Nf6 {[%emt 0:00:07]} 2. c4 {[%emt 0:00:02]} e6 {[%emt 0:00:01]} 3. Nc3 {[%emt 0:00:02]} Bb4 {[%emt 0:00:03]} 4. Nf3 {[%emt 0:00:01]} d5 {[%emt 0:00:02]} 5. Qa4+ {[%emt 0:00:18]} Nc6 {[%emt 0:00:01]} 6. e3 {[%emt 0:00:03]} O-O {[%emt 0:00:03]} 7. Qc2 {[%emt 0:00:06] D38: Queen's Gambit Declined: Ragozin Defence (4 Nf3 Bb4).} Re8 {[%emt 0:00:05]} 8. Bd2 {[%emt 0:00:02]} Bf8 {[%emt 0:00:39]} 9. Be2 {[%emt 0:01:29] The position is equal.} Nb4 {[%emt 0:00:08]} 10. Qb1 {[%emt 0:00:02]} dxc4 {[%emt 0:00:03]} 11. Bxc4 {[%emt 0:00:02]} b6 {[%emt 0:00:04]} 12. a3 {[%emt 0:00:02]} Ba6 {[%emt 0:00:07]} 13. Be2 {[%emt 0:00:02]} Bxe2 {[%emt 0:00:04]} 14. Nxe2 {[%emt 0:00:03]} Nbd5 {[%emt 0:00:04]} 15. e4 {[%emt 0:00:44]} Ne7 {[%emt 0:00:10] [#]} 16. O-O $146 {[%emt 0:02:15]} ({Predecessor:} 16. e5 Nfd5 17. Ng5 Ng6 18. h4 Be7 19. Nxh7 Bxh4 20. g3 Kxh7 21. gxh4 Kh8 22. Qe4 {1-0 (42) Giri,A (2764)-Navara,D (2681) chess24.com INT 2022}) 16... Ng6 {[%emt 0:06:12]} 17. e5 {[%emt 0:02:01]} Nd5 {[%emt 0:00:50]} 18. Qe4 {[%emt 0:00:02]} f5 {[%emt 0:03:34]} 19. exf6 {[%emt 0:00:05]} Qxf6 {[%emt 0:00:07]} 20. Nc3 {[%emt 0:01:36]} Nxc3 {[%emt 0:01:39]} 21. bxc3 {[%emt 0:01:49]} Qf5 {[%emt 0:00:04]} 22. Rfe1 {[%emt 0:00:11]} Bd6 {[%emt 0:01:59]} 23. a4 {[%emt 0:00:16]} h6 {[%emt 0:00:33]} 24. g3 {[%emt 0:01:31]} Kf7 {[%emt 0:04:10]} 25. Kg2 {[%emt 0:00:55]} Qxe4 {[%emt 0:02:08]} 26. Rxe4 {[%emt 0:00:03]} e5 {[%emt 0:00:29]} 27. d5 {[%emt 0:00:11]} c6 {[%emt 0:00:23]} 28. dxc6 {[%emt 0:00:05]} Rac8 {[%emt 0:00:01]} 29. a5 {[%emt 0:00:16]} Rxc6 {[%emt 0:00:34]} 30. axb6 {[%emt 0:00:02]} axb6 {[%emt 0:00:03]} 31. Rae1 {[%emt 0:04:52]} Bc7 {[%emt 0:06:23]} 32. h4 {[%emt 0:02:29]} Rce6 {[%emt 0:00:09]} 33. Be3 {[%emt 0:01:45]} Nf8 {[%emt 0:04:44]} (33... Rc6 $11) 34. Rc4 $16 {[%emt 0:00:39]} R8e7 {[%emt 0:00:14]} 35. Rb1 {[%emt 0:01:01] White is much more active.} Nh7 {[%emt 0:00:29]} 36. Rcb4 {[%emt 0:03:04][%cal Re3b6]} Rc6 {[%emt 0:00:43]} 37. c4 {[%emt 0:00:26]} Nf6 {[%emt 0:00:30]} 38. Nd2 {[%emt 0:00:13][%cal Re3b6]} Ree6 {[%emt 0:00:44]} 39. Kf3 {[%emt 0:00:22]} e4+ {[%emt 0:00:18]} 40. Ke2 {[%emt 0:00:04]} Ng4 {[%emt 0:00:28]} 41. Ra4 {[%emt 0:01:35]} Kg6 {[%emt 0:01:58]} 42. Rb5 {[%emt 0:00:18]} Bd6 {[%emt 0:01:57]} (42... Kh7 $11) 43. h5+ {[%emt 0:03:43]} Kh7 {[%emt 0:00:02]} (43... Kf7 $16) 44. Rxb6 $18 {[%emt 0:01:42]} Rxb6 {[%emt 0:00:02]} 45. Bxb6 {[%emt 0:00:01]} Bxg3 {[%emt 0:00:07]} (45... e3 $16 {was necessary.}) 46. fxg3 {[%emt 0:00:02]} Rxb6 {[%emt 0:00:01]} 47. Nxe4 {[%emt 0:00:20][%mdl 4096] Endgame KRN-KRN} Rb3 {[%emt 0:01:45] [#] White must now prevent ...Re3+.} 48. c5 {[%emt 0:00:05] Hoping for c6.} Ne5 {[%emt 0:00:01]} 49. Ra8 {[%emt 0:02:44]} Rb4 {[%emt 0:01:28]} (49... Rb2+ $16 {keeps fighting.} 50. Ke3 Rb1) 50. Ke3 {[%emt 0:02:28]} Rc4 $2 {[%emt 0:03:51]} (50... Nc4+ 51. Kf3 Rb1) 51. Re8 {[%emt 0:01:18]} Nc6 {[%emt 0:00:26]} 52. Kf4 {[%emt 0:00:51]} (52. g4 $142) 52... Rd4 $2 {[%emt 0:00:16] [#]} (52... Rc1 {was called for.} 53. g4 Nb4) 53. g4 {[%emt 0:00:22][%cal Bg3g4,Bg4g5][%mdl 32]} Rd5 {[%emt 0:00:16]} (53... Nd8 $18 54. Kf3 Rd5) 54. g5 {[%emt 0:00:09] Weighted Error Value: White=0.13 (very precise) /Black=0.37} 1-0

[Event "FIDE WTC Prel-A 2022"]
[Site "Jerusalem"]
[Date "2022.11.21"]
[Round "3.2"]
[White "Anton Guijarro, David"]
[Black "Moussard, Jules"]
[Result "1-0"]
[ECO "D58"]
[WhiteElo "2668"]
[BlackElo "2676"]
[Annotator "TA"]
[PlyCount "247"]
[EventDate "2022.11.20"]
[EventType "team-tourn"]
[EventCountry "ISR"]
[SourceTitle "playchess.com"]
[Source "ChessBase"]
[SourceQuality "1"]
[WhiteTeam "Spain"]
[BlackTeam "France"]
[WhiteTeamCountry "ESP"]
[BlackTeamCountry "FRA"]
[TimeControl "2700+10"]

{[%evp 25,247,0,0,-6,32,25,23,21,19,19,17,11,15,9,13,0,29,29,39,46,33,43,50,35,45,39,41,39,44,37,83,79,92,100,111,103,112,115,97,104,106,83,50,0,79,0,14,0,0,0,0,0,0,-141,0,0,0,0,0,0,338,337,484,307,9562,6334,2138,337,337,330,588,588,524,524,2505,1413,1966,1735,981,0,602,330,330,175,175,0,0,0,0,0,0,0,0,0,0,0,0,0,0,0,0,0,0,0,366,0,239,239,645,398,12831,12824,6197,5613,4107,4107,12838,12833,12832,0,12834,12835,12836,12836,12837,12836,12837,12837,12837,12838,12838,12837,12838,12839,12839,-12850,12850,27999,27999,27999,27999,27999,27999,27999,27999,27999,27999,27999,27981,27981,27982,27982,27983,27982,27983,27982,27983,27983,27984,27983,27985,27985,27986,27981,27982,27981,27987,27981,27985,27982,27983,27983,27984,27982,27983,27982,27983,27983,27984,27982,27983,27982,27983,27981,27982,27981,27982,27980,27985,27985,27986,27986,27987,27987,27998,27988,27989,27989,27990,27989,27991,27991,27993,27993,27994,27994,27995,27995,27996,27996,27997,27997,27998,27998,27999,27999,27999,27999,27999,27999,27996,27996,27997,27997]} 1. d4 {[%emt 0:00:06]} Nf6 {[%emt 0:00:04]} 2. c4 {[%emt 0:00:06]} e6 {[%emt 0:00:08]} 3. Nc3 {[%emt 0:00:17]} d5 {[%emt 0:00:06]} 4. Bg5 {[%emt 0:00:18]} Be7 {[%emt 0:02:46]} 5. e3 {[%emt 0:00:09]} h6 {[%emt 0:00:24]} 6. Bh4 {[%emt 0:00:12]} O-O {[%emt 0:00:46]} 7. Nf3 {[%emt 0:00:20]} b6 {[%emt 0:00:12]} 8. Qb3 {[%emt 0:00:26]} Bb7 {[%emt 0:01:53]} 9. Bxf6 {[%emt 0:00:13]} Bxf6 {[%emt 0:00:03]} 10. cxd5 {[%emt 0:00:04]} exd5 {[%emt 0:00:34]} 11. Rd1 {[%emt 0:00:08]} Re8 {[%emt 0:01:17]} 12. Be2 {[%emt 0:00:21] has lost popularity (12.Bd3).} c6 {[%emt 0:01:01]} 13. O-O {[%emt 0:00:21]} Nd7 {[%emt 0:00:51] [#]} 14. h3 $1 $146 {[%emt 0:01:56][%mdl 8] An important novelty. D58: Queen's Gambit Declined: Tartakower Defence.} ({Predecessor:} 14. Bd3 Nf8 15. e4 g6 16. e5 Bg7 17. Rfe1 Ne6 18. Bb1 Qe7 19. Qc2 c5 20. dxc5 d4 21. Ne4 Nxc5 {½-½ (66) Gupta,A (2588)-Meier,G (2639) Chess.com INT 2018}) 14... Be7 {[%emt 0:02:05]} 15. e4 {[%emt 0:02:21][%cal Re4d5]} Nf6 {[%emt 0:11:46]} 16. e5 {[%emt 0:10:27] White has an edge.} Nh7 {[%emt 0:00:25]} 17. Bd3 {[%emt 0:01:00]} Nf8 {[%emt 0:02:18]} 18. Ne2 {[%emt 0:01:08]} Ne6 {[%emt 0:01:40]} 19. Bf5 {[%emt 0:04:27]} Bf8 {[%emt 0:02:00]} 20. Bxe6 {[%emt 0:02:51]} (20. Rfe1 {is more complex.} Qe7 21. Qd3 c5 22. Bxe6 fxe6 23. Qg6) 20... Rxe6 {[%emt 0:00:24]} 21. Rfe1 {[%emt 0:01:27]} Re8 {[%emt 0:00:41]} 22. Nh2 {[%emt 0:01:06]} c5 {[%emt 0:01:09]} 23. f4 {[%emt 0:00:05]} Rc8 {[%emt 0:02:05]} 24. Qg3 {[%emt 0:00:42]} Qd7 {[%emt 0:02:34]} 25. Ng4 {[%emt 0:02:30]} Kh8 {[%emt 0:00:01]} 26. Kh2 {[%emt 0:00:38]} a5 {[%emt 0:02:36]} 27. Ne3 {[%emt 0:01:16]} a4 {[%emt 0:01:58]} (27... Rcd8 $14) 28. dxc5 $16 {[%emt 0:03:40]} Rxc5 {[%emt 0:00:02]} 29. a3 {[%emt 0:01:19]} Rb5 {[%emt 0:01:19]} 30. Rd2 {[%emt 0:00:26]} Bc5 {[%emt 0:00:09]} 31. Nd4 $1 {[%emt 0:01:25]} (31. Nc3 Rb3 $14) 31... Bxd4 {[%emt 0:01:03]} 32. Rxd4 {[%emt 0:00:02]} Rxb2 {[%emt 0:00:24]} 33. Nc4 {[%emt 0:04:49]} Rb3 {[%emt 0:00:45]} 34. Qf2 {[%emt 0:00:04]} (34. Re3 $1 $14) 34... Rf8 {[%emt 0:01:58]} (34... Bc6 $11) 35. Nd6 {[%emt 0:00:23]} (35. f5 $1 $16 {[%cal Rf5f6]}) 35... f6 {[%emt 0:00:35]} 36. Qd2 {[%emt 0:00:01]} Bc6 {[%emt 0:00:49]} (36... Rxa3 $2 37. Nxb7 fxe5 38. fxe5 $18 (38. Qb4 Ra8 $14)) 37. Qc2 {[%emt 0:01:56]} fxe5 {[%emt 0:01:00]} 38. fxe5 {[%emt 0:00:02]} Rxa3 {[%emt 0:01:05]} 39. Qg6 {[%emt 0:01:12]} (39. Rdd1 $11) 39... Rf2 {[%emt 0:00:27]} (39... Ra2 $17 {Strongly threatening ...Raf2.} 40. Re3 Raf2) 40. Kg1 {[%emt 0:01:08]} Raa2 {[%emt 0:00:00]} 41. Rg4 {[%emt 0:00:06] aiming for Rc1.} Qe7 {[%emt 0:00:25][%cal Od5d4]} 42. Nf5 {[%emt 0:00:20]} Rxf5 {[%emt 0:00:10][%mdl 8192]} 43. Qxf5 $18 {[%emt 0:00:02] Really sharp!} d4 {[%emt 0:00:03]} (43... Bb5 $142 44. e6 Qc5+ 45. Kh2 (45. Kh1 Rf2 $18) 45... Rf2) 44. e6 {[%emt 0:00:07]} (44. Qc8+ Be8 $14) 44... Kg8 $2 {[%emt 0:00:12]} (44... Be8 45. Rxd4 Rb2) 45. Rc1 {[%emt 0:00:23]} Be8 {[%emt 0:00:14]} 46. Rxd4 $2 {[%emt 0:00:13]} (46. Rc8 {White threatens Qg6 and mate.} d3 47. Qg6 Qc5+ 48. Kh2 Qe5+ 49. Rg3 Rxg2+ 50. Kxg2 Qe2+ 51. Kh1) 46... Re2 {[%emt 0:00:05]} 47. Re4 {[%emt 0:00:07]} Rxe4 {[%emt 0:00:04]} (47... Rd2 {was necessary.} 48. Rc8 Rd1+ 49. Kh2 Rd8 50. Rxd8 Qxd8) 48. Qxe4 {[%emt 0:00:01][%mdl 4096] Endgame KQR-KQB} a3 {[%emt 0:00:17]} 49. Rc8 {[%emt 0:00:17]} b5 {[%emt 0:00:16]} 50. Qc6 {[%emt 0:00:19]} Kf8 {[%emt 0:00:01]} 51. Qf3+ {[%emt 0:00:05]} Kg8 {[%emt 0:00:03]} 52. Qc6 {[%emt 0:00:11]} Kf8 {[%emt 0:00:01]} 53. Qxb5 {[%emt 0:00:05]} Qxe6 {[%emt 0:00:16]} 54. Qb4+ {[%emt 0:00:13]} (54. Qc5+ $142 Kg8 55. Ra8) 54... Kg8 {[%emt 0:00:25]} 55. Ra8 {[%emt 0:00:14]} (55. Qb8 $1 $18 Kf7 56. Qc7+ Kg8 57. Ra8) 55... Qe3+ $11 {[%emt 0:00:12]} 56. Kh2 {[%emt 0:00:12] Threatens to win with Qb8.} Qe5+ {[%emt 0:00:03]} 57. Kh1 {[%emt 0:00:05] Black must now prevent Qb8.} Qa1+ {[%emt 0:00:03]} 58. Kh2 {[%emt 0:00:03]} Qe5+ {[%emt 0:00:01]} 59. Kg1 {[%emt 0:00:10] And now Qb8 would win.} Qe3+ $1 {[%emt 0:00:02]} 60. Kh1 {[%emt 0:00:15]} Qc1+ {[%emt 0:00:03]} 61. Kh2 {[%emt 0:00:05]} Qc7+ {[%emt 0:00:01]} 62. Kg1 {[%emt 0:00:10]} Qc1+ {[%emt 0:00:02]} 63. Kf2 {[%emt 0:00:09]} (63. Kh2 Qc7+ 64. Kg1 Qc1+ 65. Kh2 $18) 63... Qc2+ {[%emt 0:00:09]} 64. Ke3 {[%emt 0:00:12]} Qc1+ $2 {[%emt 0:00:42][%mdl 8192] [#]} (64... a2 $11) 65. Qd2 $2 {[%emt 0:00:20]} (65. Kf3 $1 $18 Qc6+ 66. Qe4 Qc3+ 67. Kf2 Qc5+ 68. Kf1 Qc1+ 69. Kf2 Qc5+ 70. Kf1 Qc1+ 71. Qe1 Qxe1+ 72. Kxe1) 65... Qc5+ $2 {[%emt 0:00:34]} (65... Qc6 $1 $11 66. Qd8 (66. Qa2+ Kh7 $11) 66... Qc1+ 67. Qd2 Qc6 68. Qa2+ Kh7 69. Rxa3 Qb6+ 70. Kf3 Qf6+ 71. Kg3 Qd6+ 72. Kf3 (72. Kf2 Qd4+ 73. Re3 Qf4+ 74. Rf3 Qd4+ 75. Re3 Qf4+ 76. Rf3 Qd4+ 77. Re3 $11) 72... Qf6+ 73. Kg3 Qd6+ 74. Kf3 (74. Kf2 Qd4+ 75. Re3 Qf4+ 76. Rf3 Qd4+ 77. Re3 Qf4+ 78. Rf3 Qd4+ 79. Re3 $11) 74... Qf6+) 66. Qd4 $18 {[%emt 0:00:02]} Qc6 $2 {[%emt 0:00:11]} (66... Qb5 67. Kf2 a2 68. Rxa2 Bc6) 67. Qe4 {[%emt 0:00:17] Intending Qxc6 and mate. Active counter play!} Qxe4+ $2 {[%emt 0:00:09]} (67... Qc3+ 68. Kf2 Qc5+ 69. Kf3 Qc3+ 70. Kf2 Qc5+ 71. Qe3 Qf8+ 72. Kg1 a2) 68. Kxe4 {[%emt 0:00:01] KR-KB} Kf7 {[%emt 0:00:01]} 69. Ra7+ {[%emt 0:00:14]} Kf6 {[%emt 0:00:01]} 70. Kf4 {[%emt 0:00:12]} g5+ {[%emt 0:00:02]} 71. Ke3 {[%emt 0:00:08]} h5 {[%emt 0:00:09]} 72. g3 $2 {[%emt 0:00:10]} ({Better is} 72. Rxa3 $18 h4 73. Ra6+ Kf5 74. Ra5+ Kf6 75. Ra6+ Ke5 76. Ra5+ Kf6 77. Kd4) 72... Bb5 $2 {[%emt 0:00:14][%mdl 8192]} (72... Bf7 $11) 73. Kf2 {[%emt 0:00:15]} Bc4 {[%emt 0:00:11]} 74. Rxa3 {[%emt 0:00:04]} Be6 {[%emt 0:00:01]} 75. Ra6 {[%emt 0:00:04]} Ke5 {[%emt 0:00:02]} 76. Ra5+ {[%emt 0:00:09]} Kf6 {[%emt 0:00:01] [#]} 77. Kg2 $1 {[%emt 0:00:05]} Bd7 {[%emt 0:00:07]} 78. Kh2 {[%emt 0:00:18]} Be6 {[%emt 0:00:02]} 79. Ra4 {[%emt 0:00:05]} Bd7 {[%emt 0:00:16]} 80. h4 $4 {[%emt 0:00:12][%mdl 8192]} gxh4 $4 {[%emt 0:00:02][%mdl 8192]} (80... Bxa4 $19 81. Kg2 Kf5 82. Kh3 Bc6 83. Kh2 gxh4 84. gxh4 Kg4 85. Kg1 Kxh4 86. Kf2 Kg4 87. Ke3 h4 88. Kd4 h3 89. Kc5 Bf3 90. Kd6 h2 91. Ke6 h1=Q 92. Kd6 Qh6+ 93. Kc5 Qc6+ 94. Kd4 Kf4 95. Kd3 Qc5 96. Kd2 Qc4 97. Ke1 Qe2#) 81. Rxh4 {[%emt 0:00:09] Black is on the road to losing.} Bg4 {[%emt 0:00:34] White mates.} 82. Kg2 {[%emt 0:00:02]} Ke5 {[%emt 0:00:11]} 83. Kf2 {[%emt 0:00:01]} Kd4 {[%emt 0:00:36]} 84. Rh1 {[%emt 0:00:06]} Ke4 {[%emt 0:00:05]} 85. Ra1 {[%emt 0:00:06]} Kf5 {[%emt 0:00:12]} 86. Ke3 {[%emt 0:00:07]} h4 {[%emt 0:00:25]} 87. gxh4 {[%emt 0:00:17]} Kg6 {[%emt 0:00:04]} 88. Kf4 {[%emt 0:00:34]} Be2 {[%emt 0:00:05]} 89. Ra2 {[%emt 0:00:02]} Bc4 {[%emt 0:00:03]} 90. Rc2 {[%emt 0:00:04]} Bd3 {[%emt 0:00:03]} 91. Rc5 {[%emt 0:00:05]} Be2 {[%emt 0:00:09]} 92. Rd5 {[%emt 0:00:13]} Kh6 {[%emt 0:00:05]} 93. Rd2 {[%emt 0:00:14]} Bc4 {[%emt 0:00:02]} 94. Rd6+ {[%emt 0:00:05]} Kh5 {[%emt 0:00:16]} 95. Rd8 {[%emt 0:00:01]} Kh6 {[%emt 0:00:05]} 96. Rd4 {[%emt 0:00:10]} Be2 {[%emt 0:00:03]} 97. Re4 {[%emt 0:00:02]} Bd1 {[%emt 0:00:02]} 98. Re5 {[%emt 0:00:10]} Kg6 {[%emt 0:00:04]} 99. Re1 {[%emt 0:00:20]} Bc2 {[%emt 0:00:05]} 100. Re6+ {[%emt 0:00:24]} Kh5 {[%emt 0:00:04]} 101. Re5+ {[%emt 0:00:01]} Kg6 {[%emt 0:01:31]} 102. Re2 {[%emt 0:00:00]} Bd1 {[%emt 0:00:00]} 103. Rd2 {[%emt 0:00:00]} Bb3 {[%emt 0:00:00]} 104. Kg4 {[%emt 0:00:00]} Be6+ {[%emt 0:00:00]} 105. Kg3 {[%emt 0:00:00]} Bb3 {[%emt 0:00:00]} 106. Rd4 {[%emt 0:00:00]} Bc2 {[%emt 0:00:00]} 107. Rd6+ {[%emt 0:00:00]} Kh5 {[%emt 0:00:00]} 108. Rd5+ {[%emt 0:00:00]} Kg6 {[%emt 0:00:08]} 109. Kg4 {[%emt 0:00:00]} Kf6 {[%emt 0:00:28]} 110. Rd6+ {[%emt 0:00:00]} Kf7 {[%emt 0:00:04]} 111. Kg5 {[%emt 0:00:00]} Bb1 {[%emt 0:00:19]} 112. Rd4 {[%emt 0:01:13]} Bc2 {[%emt 0:00:03]} 113. Kh6 {[%emt 0:00:11]} Bb1 {[%emt 0:00:10]} 114. Rf4+ {[%emt 0:00:35]} Kg8 {[%emt 0:00:01]} 115. Rg4+ {[%emt 0:00:19]} Kf7 {[%emt 0:00:03]} 116. Rg7+ {[%emt 0:00:06]} Kf8 {[%emt 0:00:21]} 117. Rg5 {[%emt 0:00:17]} Kf7 {[%emt 0:00:05]} 118. Kh5 {[%emt 0:00:07]} Bc2 {[%emt 0:00:51]} 119. Kg4 {[%emt 0:00:04]} Bd1+ {[%emt 0:00:03]} 120. Kf4 {[%emt 0:00:07]} Bc2 {[%emt 0:00:02]} 121. Ke5 {[%emt 0:00:32]} Bd3 {[%emt 0:00:25]} 122. h5 {[%emt 0:00:02][%cal Bh4h5,Bh5h6][%mdl 32]} Bc2 {[%emt 0:00:14]} 123. h6 {[%emt 0:00:02]} Bg6 {[%emt 0:00:04]} 124. Rg3 {[%emt 0:00:05] Weighted Error Value: White=0.55/Black=0.38} 1-0

[Event "FIDE WTC Prel-A 2022"]
[Site "Jerusalem"]
[Date "2022.11.21"]
[Round "3.3"]
[White "Fressinet, Laurent"]
[Black "Shirov, Alexei"]
[Result "1/2-1/2"]
[ECO "D85"]
[WhiteElo "2622"]
[BlackElo "2666"]
[Annotator "TA"]
[PlyCount "68"]
[EventDate "2022.11.20"]
[EventType "team-tourn"]
[EventCountry "ISR"]
[SourceTitle "playchess.com"]
[Source "ChessBase"]
[SourceQuality "1"]
[WhiteTeam "France"]
[BlackTeam "Spain"]
[WhiteTeamCountry "FRA"]
[BlackTeamCountry "ESP"]
[TimeControl "2700+10"]

{[%evp 20,68,0,0,10,4,25,23,19,20,22,17,22,22,16,8,2,0,8,0,0,0,0,0,47,47,54,6,41,40,50,0,7,0,3,0,0,0,0,0,0,0,0,0,0,0,0,0,0,0,0]} 1. d4 {[%emt 0:00:04]} Nf6 {[%emt 0:00:01]} 2. c4 {[%emt 0:00:05]} g6 {[%emt 0:00:02]} 3. Nc3 {[%emt 0:00:11]} d5 {[%emt 0:00:01]} 4. cxd5 {[%emt 0:00:03]} Nxd5 {[%emt 0:00:02]} 5. e4 {[%emt 0:00:04]} Nxc3 {[%emt 0:00:03]} 6. bxc3 {[%emt 0:00:03][%cal Bb2c3,Bc3d4,Bd4d5][%mdl 32]} Bg7 {[%emt 0:00:02]} 7. Be3 {[%emt 0:00:10]} c5 {[%emt 0:00:08]} 8. Rc1 {[%emt 0:00:06]} Qa5 {[%emt 0:00:53]} 9. Qd2 {[%emt 0:00:08]} cxd4 {[%emt 0:00:27]} 10. cxd4 {[%emt 0:00:05]} Qxd2+ {[%emt 0:00:02]} 11. Bxd2 {[%emt 0:00:21]} O-O {[%emt 0:00:53] D85: Exchange Grünfeld: Unusual White 7th moves and lines with 7 Nf3.} 12. Nf3 {[%emt 0:00:21]} Bg4 $1 {[%emt 0:01:25] 12...Bg4 scores better than 12...e6.} 13. Be3 {[%emt 0:00:43]} Nc6 {[%emt 0:01:35][%cal Bb8c6,Bc6d4,Bd4f3][%mdl 32] White has an edge.} 14. d5 {[%emt 0:00:48]} Bxf3 {[%emt 0:00:02]} 15. gxf3 {[%emt 0:00:04]} Nd4 {[%emt 0:00:02]} 16. Bh3 {[%emt 0:01:20] Against Rac8} f5 {[%emt 0:00:02]} 17. Rc7 {[%emt 0:04:02]} Nxf3+ {[%emt 0:00:04]} 18. Ke2 {[%emt 0:04:28]} Nd4+ {[%emt 0:00:06] [#]} 19. Kd3 $146 {[%emt 0:02:06]} ({Predecessor:} 19. Bxd4 Bxd4 20. exf5 gxf5 21. Rg1+ Kh8 22. Rxe7 Rae8 23. Re6 Rxe6+ 24. dxe6 Rf6 25. Kd3 Bxf2 {½-½ (64) Carlsen,M (2863)-Ding,L (2791) chess24.com INT 2020}) 19... fxe4+ {[%emt 0:07:33]} 20. Kxe4 {[%emt 0:00:19]} Nf5 {[%emt 0:00:11]} 21. Bxf5 {[%emt 0:01:20]} gxf5+ {[%emt 0:00:05]} (21... Rxf5 $11 {is more appropriate.} 22. Rxe7 Rd8) 22. Kf3 $14 {[%emt 0:01:29]} Rf7 {[%emt 0:18:24]} 23. Rxb7 {[%emt 0:03:30]} (23. Rd7 $14) 23... e6 {[%emt 0:00:13]} 24. Rxf7 {[%emt 0:08:21]} Kxf7 {[%emt 0:00:02][%mdl 4096] Endgame KRB-KRB} 25. Rb1 {[%emt 0:02:36] And now Rb7+ would win.} exd5 {[%emt 0:00:18] The position is equal.} 26. Rb7+ {[%emt 0:00:02]} Kg6 {[%emt 0:00:02]} 27. Rxa7 {[%emt 0:00:04]} Rc8 {[%emt 0:06:34]} 28. Rd7 {[%emt 0:02:20]} d4 {[%emt 0:04:20]} 29. Rd6+ {[%emt 0:01:30]} Kh5 {[%emt 0:00:02]} 30. Bxd4 {[%emt 0:01:16]} Bxd4 {[%emt 0:00:03]} 31. Rxd4 {[%emt 0:00:01]} Rc3+ {[%emt 0:00:02]} 32. Kg2 {[%emt 0:02:17]} Ra3 {[%emt 0:00:07]} 33. Rd2 {[%emt 0:00:18]} Kg4 {[%emt 0:00:49]} 34. h3+ {[%emt 0:00:40]} Kg5 {[%emt 0:00:15] Weighted Error Value: White=0.05 (flawless) /Black=0.06 (flawless)} 1/2-1/2